fUSD/lending_fUSD_20240324
["ID","MTS","AMOUNT","RATE_DAILY","PERIOD"]
[320324508,1711291402768,-500.0,0.00019346,2]
[320324509,1711291402788,-513.16566462,0.00019346,2]
[320324510,1711291402808,-500.0,0.00019346,2]
[320324511,1711291402830,-600.32,0.00019346,2]
[320324512,1711291402850,-562.25,0.00019346,2]
[320324513,1711291402871,-328.13982849,0.00019346,2]
[320324514,1711291402892,-500.0,0.00019346,2]
[320324515,1711291402913,-500.0,0.00019346,2]
[320324516,1711291402938,-500.0,0.00019346,2]
[320324517,1711291402958,-500.0,0.00019346,2]
[320324518,1711291402981,-500.0,0.00019346,2]
[320324519,1711291403001,-500.0,0.00019346,2]
[320324520,1711291403023,-500.0,0.00019346,2]
[320324521,1711291403044,-500.0,0.00019346,2]
[320324522,1711291403064,-500.0,0.00019346,2]
[320324523,1711291403087,-500.0,0.00019346,2]
[320324524,1711291403108,-500.0,0.00019346,2]
[320324525,1711291403128,-506.4114951,0.00019346,2]
[320324526,1711291403149,-595.25,0.00019346,2]
[320324527,1711291403170,-500.0,0.00019346,2]
[320324528,1711291403191,-500.0,0.00019346,2]
[320324529,1711291403212,-500.0,0.00019346,2]
[320324530,1711291403233,-500.0,0.00019346,2]
[320324531,1711291403254,-500.0,0.00019346,2]
[320324532,1711291403275,-500.0,0.00019346,2]
[320324533,1711291403295,-500.0,0.00019346,2]
[320324534,1711291403495,-500.0,0.00019346,2]
[320324535,1711291403515,-500.0,0.00019346,2]
[320324536,1711291403535,-500.0,0.00019346,2]
[320324537,1711291403555,-500.0,0.00019346,2]
[320324538,1711291403575,-608.96,0.00019346,2]
[320324539,1711291403596,-500.0,0.00019346,2]
[320324540,1711291403617,-500.0,0.00019346,2]
[320324541,1711291403637,-500.0,0.00019346,2]
[320324542,1711291403657,-500.0,0.00019346,2]
[320324543,1711291403677,-523.14,0.00019346,2]
[320324544,1711291403696,-500.0,0.00019346,2]
[320324545,1711291403716,-500.0,0.00019346,2]
[320324546,1711291403736,-506.27895798,0.00019346,2]
[320324547,1711291403755,-500.0,0.00019346,2]
[320324548,1711291403775,-500.0,0.00019346,2]
[320324549,1711291403794,-503.61486048,0.00019346,2]
[320324550,1711291403815,-500.0,0.00019346,2]
[320324551,1711291403837,-500.0,0.00019346,2]
[320324552,1711291403859,-500.0,0.00019346,2]
[320324553,1711291403880,-500.0,0.00019346,2]
[320324554,1711291403900,-500.0,0.00019346,2]
[320324555,1711291403919,-505.27199633,0.00019346,2]
[320324556,1711291403939,-500.0,0.00019346,2]
[320324557,1711291403958,-500.0,0.00019346,2]
[320324558,1711291403978,-500.0,0.00019346,2]
[320324559,1711291403998,-500.0,0.00019346,2]
[320324560,1711291404017,-500.0,0.00019346,2]
[320324561,1711291404037,-500.0,0.00019346,2]
[320324562,1711291404059,-500.0,0.00019346,2]
[320324563,1711291404080,-500.0,0.00019346,2]
[320324564,1711291404101,-500.0,0.00019346,2]
[320324565,1711291404128,-500.0,0.00019346,2]
[320324566,1711291404200,-502.92279596,0.00019346,2]
[320324567,1711291404221,-649.19886123,0.00019346,2]
[320324568,1711291404242,-503.21279146,0.00019346,2]
[320324569,1711291404263,-500.0,0.00019346,2]
[320324570,1711291404284,-500.0,0.00019346,2]
[320324571,1711291404305,-257.16350554,0.00019346,2]
[320324572,1711291404326,-503.83934471,0.00019346,2]
[320324573,1711291404351,-500.0,0.00019346,2]
[320324574,1711291404372,-500.0,0.00019346,2]
[320324575,1711291404393,-515.75,0.00019346,2]
[320324576,1711291404414,-543.25075992,0.00019346,2]
[320324577,1711291404436,-500.0,0.00019346,2]
[320324578,1711291404456,-500.96530014,0.00019346,2]
[320324579,1711291404477,-500.0,0.00019346,2]
[320324580,1711291404498,-500.0,0.00019346,2]
[320324581,1711291404519,-500.0,0.00019346,2]
[320324582,1711291404539,-508.17,0.00019346,2]
[320324583,1711291404560,-500.0,0.00019346,2]
[320324584,1711291404583,-500.0,0.00019346,2]
[320324585,1711291404603,-500.0,0.00019346,2]
[320324586,1711291404623,-500.0,0.00019346,2]
[320324587,1711291404644,-500.0,0.00019346,2]
[320324588,1711291404664,-500.0,0.00019346,2]
[320324589,1711291404685,-500.0,0.00019346,2]
[320324590,1711291404705,-500.0,0.00019346,2]
[320324591,1711291404726,-505.85918617,0.00019346,2]
[320324592,1711291404747,-500.0,0.00019346,2]
[320324593,1711291404767,-500.0,0.00019346,2]
[320324594,1711291404787,-504.02038634,0.00019346,2]
[320324595,1711291404809,-500.0,0.00019346,2]
[320324596,1711291404830,-500.0,0.00019346,2]
[320324597,1711291404851,-500.0,0.00019346,2]
[320324598,1711291404871,-500.0,0.00019346,2]
[320324599,1711291404891,-500.0,0.00019346,2]
[320324600,1711291404910,-500.0,0.00019346,2]
[320324601,1711291404930,-500.0,0.00019346,2]
[320324602,1711291404950,-500.0,0.00019346,2]
[320324603,1711291404970,-306.45778726,0.00019346,2]
[320324604,1711291404992,-500.0,0.00019346,2]
[320324605,1711291405011,-578.98,0.00019346,2]
[320324606,1711291405032,-500.0,0.00019346,2]
[320324607,1711291405054,-500.0,0.00019346,2]
[320324608,1711291405074,-500.0,0.00019346,2]
[320324609,1711291405097,-500.0,0.00019346,2]
[320324610,1711291405119,-500.0,0.00019346,2]
[320324611,1711291405139,-503.21230004,0.00019346,2]
[320324612,1711291405160,-500.0,0.00019346,2]
[320324613,1711291405180,-501.43428562,0.00019346,2]
[320324614,1711291405201,-500.0,0.00019346,2]
[320324615,1711291405222,-500.0,0.00019346,2]
[320324616,1711291405244,-500.0,0.00019346,2]
[320324617,1711291405265,-500.0,0.00019346,2]
[320324618,1711291405286,-500.0,0.00019346,2]
[320324619,1711291405307,-503.97409749,0.00019346,2]
[320324620,1711291405333,-500.0,0.00019346,2]
[320324621,1711291405354,-500.0,0.00019346,2]
[320324622,1711291405374,-500.0,0.00019346,2]
[320324623,1711291405395,-500.0,0.00019346,2]
[320324624,1711291405419,-500.0,0.00019346,2]
[320324625,1711291405439,-500.0,0.00019346,2]
[320324626,1711291405459,-500.0,0.00019346,2]
[320324627,1711291405478,-522.5,0.00019346,2]
[320324628,1711291405498,-500.0,0.00019346,2]
[320324629,1711291405519,-500.0,0.00019346,2]
[320324630,1711291405539,-500.0,0.00019346,2]
[320324631,1711291405573,-500.0,0.00019346,2]
[320324632,1711291405627,-501.68430294,0.00019346,2]
[320324633,1711291405646,-500.0,0.00019346,2]
[320324634,1711291405666,-500.0,0.00019346,2]
[320324635,1711291405687,-500.0,0.00019346,2]
[320324636,1711291405708,-500.0,0.00019346,2]
[320324637,1711291405729,-500.0,0.00019346,2]
[320324638,1711291405750,-500.0,0.00019346,2]
[320324639,1711291405770,-500.0,0.00019346,2]
[320324640,1711291405790,-500.0,0.00019346,2]
[320324641,1711291405810,-500.0,0.00019346,2]
[320324642,1711291405829,-500.0,0.00019346,2]
[320324643,1711291405851,-500.0,0.00019346,2]
[320324644,1711291405870,-501.8445021,0.00019346,2]
[320324645,1711291405890,-500.0,0.00019346,2]
[320324646,1711291405910,-501.27368321,0.00019346,2]
[320324647,1711291405930,-500.907093,0.00019346,2]
[320324648,1711291405950,-500.0,0.00019346,2]
[320324649,1711291405970,-500.0,0.00019346,2]
[320324650,1711291405991,-500.0,0.00019346,2]
[320324651,1711291406013,-500.18984135,0.00019346,2]
[320324652,1711291406033,-500.0,0.00019346,2]
[320324653,1711291406052,-500.93714206,0.00019346,2]
[320324654,1711291406072,-500.0,0.00019346,2]
[320324655,1711291406092,-500.0,0.00019346,2]
[320324656,1711291406113,-500.0,0.00019346,2]
[320324657,1711291406133,-502.71935555,0.00019346,2]
[320324658,1711291406154,-278.91404774,0.00019346,2]
[320324659,1711291406175,-1687.49,0.00019346,2]
[320324660,1711291406197,-500.0,0.00019346,2]
[320324661,1711291406217,-500.0,0.00019346,2]
[320324662,1711291406237,-500.0,0.00019346,2]
[320324663,1711291406257,-503.82890746,0.00019346,2]
[320324664,1711291406278,-500.0,0.00019346,2]
[320324665,1711291406300,-500.79309071,0.00019346,2]
[320324666,1711291406322,-500.0,0.00019346,2]
[320324667,1711291406348,-500.0,0.00019346,2]
[320324668,1711291406371,-500.0,0.00019346,2]
[320324669,1711291406393,-500.0,0.00019346,2]
[320324670,1711291406413,-500.0,0.00019346,2]
[320324671,1711291406436,-500.0,0.00019346,2]
[320324672,1711291406459,-505.63657251,0.00019346,2]
[320324673,1711291406481,-501.23551582,0.00019346,2]
[320324674,1711291406505,-500.0,0.00019346,2]
[320324675,1711291406527,-500.0,0.00019346,2]
[320324676,1711291406549,-203.5687274,0.00019346,2]
[320324677,1711291406572,-523.52,0.00019346,2]
[320324678,1711291406596,-500.0,0.00019346,2]
[320324679,1711291406621,-508.98,0.00019346,2]
[320324680,1711291406644,-500.0,0.00019346,2]
[320324681,1711291406667,-500.0,0.00019346,2]
[320324682,1711291406690,-1118.54,0.00019346,2]
[320324683,1711291406713,-3052.06,0.00019346,2]
[320324684,1711291406738,-7887.25,0.00019346,2]
[320324685,1711291406760,-500.0,0.00019346,2]
[320324686,1711291406784,-194.6922998,0.00019346,2]
[320324687,1711291406807,-788.42,0.00019346,2]
[320324688,1711291406832,-500.0,0.00019346,2]
[320324689,1711291406856,-500.0,0.00019346,2]
[320324690,1711291406879,-503.12437427,0.00019346,2]
[320324691,1711291406906,-591.07485648,0.00019346,2]
[320324692,1711291406929,-450.0,0.00019346,2]
[320324693,1711291406951,-500.0,0.00019346,2]
[320324694,1711291406973,-500.0,0.00019346,2]
[320324695,1711291406996,-500.0,0.00019346,2]
[320324696,1711291407018,-500.0,0.00019346,2]
[320324697,1711291407040,-503.51232151,0.00019346,2]
[320324698,1711291407062,-500.0,0.00019346,2]
[320324699,1711291407084,-500.0,0.00019346,2]
[320324700,1711291407107,-500.0,0.00019346,2]
[320324701,1711291407130,-500.0,0.00019346,2]
[320324702,1711291407152,-500.0,0.00019346,2]
[320324703,1711291407173,-500.0,0.00019346,2]
[320324704,1711291407194,-500.0,0.00019346,2]
[320324705,1711291407215,-500.0,0.00019346,2]
[320324706,1711291407237,-500.0,0.00019346,2]
[320324707,1711291407258,-500.0,0.00019346,2]
[320324708,1711291407279,-500.0,0.00019346,2]
[320324709,1711291407300,-500.0,0.00019346,2]
[320324710,1711291407322,-500.0,0.00019346,2]
[320324711,1711291407347,-500.0,0.00019346,2]
[320324712,1711291407369,-500.0,0.00019346,2]
[320324713,1711291407391,-500.0,0.00019346,2]
[320324714,1711291407415,-500.0,0.00019346,2]
[320324715,1711291407437,-515.28761551,0.00019346,2]
[320324716,1711291407459,-500.0,0.00019346,2]
[320324717,1711291407481,-500.0,0.00019346,2]
[320324718,1711291407504,-500.0,0.00019346,2]
[320324719,1711291407526,-500.0,0.00019346,2]
[320324720,1711291407548,-500.0,0.00019346,2]
[320324721,1711291407570,-500.0,0.00019346,2]
[320324722,1711291407592,-300.17,0.00019346,2]
[320324723,1711291407615,-500.0,0.00019346,2]
[320324724,1711291407638,-500.0,0.00019346,2]
[320324725,1711291407661,-500.0,0.00019346,2]
[320324726,1711291407685,-500.0,0.00019346,2]
[320324727,1711291407708,-500.0,0.00019346,2]
[320324728,1711291407731,-505.6966153,0.00019346,2]
[320324729,1711291407754,-500.0,0.00019346,2]
[320324730,1711291407778,-500.0,0.00019346,2]
[320324731,1711291407801,-500.0,0.00019346,2]
[320324732,1711291407824,-500.0,0.00019346,2]
[320324733,1711291407846,-500.0,0.00019346,2]
[320324734,1711291407869,-1019.69,0.00019346,2]
[320324735,1711291407891,-500.0,0.00019346,2]
[320324736,1711291407915,-500.0,0.00019346,2]
[320324737,1711291407937,-500.0,0.00019346,2]
[320324738,1711291407961,-500.0,0.00019346,2]
[320324739,1711291407982,-626.88,0.00019346,2]
[320324740,1711291408005,-500.0,0.00019346,2]
[320324741,1711291408026,-500.0,0.00019346,2]
[320324742,1711291408048,-500.0,0.00019346,2]
[320324743,1711291408070,-505.0023148,0.00019346,2]
[320324744,1711291408092,-500.0,0.00019346,2]
[320324745,1711291408113,-500.0,0.00019346,2]
[320324746,1711291408133,-500.0,0.00019346,2]
[320324747,1711291408153,-500.0,0.00019346,2]
[320324748,1711291408173,-500.0,0.00019346,2]
[320324749,1711291408193,-500.0,0.00019346,2]
[320324750,1711291408213,-3606.007,0.00019347,2]
[320324751,1711291408234,-316.87969643,0.00019383,2]
[320324752,1711291408253,-10000.0,0.00019384,2]
[320324753,1711291408273,-1000.0,0.00019384,2]
[320324754,1711291408293,-500.0,0.00019451,2]
[320324755,1711291408313,-316.87969641,0.00019457,2]
[320324756,1711291408336,-171.44210934,0.00019481,2]
[320324757,1711291408356,-3249.37,0.00019483,2]
[320324758,1711291408377,-500.0,0.00019483,2]
[320324759,1711291408399,-528.79,0.00019483,2]
[320324760,1711291408421,-409.54638962,0.00019483,2]
[320324761,1711291408442,-500.0,0.00019483,2]
[320324762,1711291408462,-500.0,0.00019483,2]
[320324763,1711291408482,-500.0,0.00019483,2]
[320324764,1711291408507,-1349.51,0.00019483,2]
[320324765,1711291408527,-653.1,0.00019483,2]
[320324766,1711291408548,-500.0,0.00019483,2]
[320324767,1711291408568,-500.0,0.00019483,2]
[320324768,1711291408588,-962.33,0.00019483,2]
[320324769,1711291408609,-500.0,0.00019483,2]
[320324770,1711291408629,-500.0,0.00019483,2]
[320324771,1711291408651,-637.19,0.00019483,2]
[320324772,1711291408671,-500.0,0.00019483,2]
[320324773,1711291408693,-500.0,0.00019483,2]
[320324774,1711291408713,-5994.56,0.00019483,2]
[320324775,1711291408734,-783.27,0.00019483,2]
[320324776,1711291408755,-1039.16,0.00019483,2]
[320324777,1711291408775,-530.99,0.00019483,2]
[320324778,1711291408796,-500.0,0.00019483,2]
[320324779,1711291408816,-534.86,0.00019483,2]
[320324780,1711291408838,-500.0,0.00019483,2]
[320324781,1711291408859,-500.0,0.00019483,2]
[320324782,1711291408879,-500.0,0.00019483,2]
[320324783,1711291408900,-500.0,0.00019483,2]
[320324784,1711291408919,-500.0,0.00019483,2]
[320324785,1711291408939,-1000.0,0.00019513,2]
[320324786,1711291408958,-170.18445164,0.00019525,2]
[320324787,1711291408979,-316.87969641,0.00019531,2]
[320324788,1711291409134,-178.7895643,0.00019572,2]
[320324789,1711291409155,-3000.0,0.000196,2]
[320324790,1711291409176,-316.87969641,0.00019605,2]
[320324791,1711291409197,-1000.0,0.00019609,2]
[320324792,1711291409218,-272.3,0.0001962,2]
[320324793,1711291409240,-398.29,0.0001962,2]
[320324794,1711291409261,-1844.93,0.0001962,2]
[320324795,1711291409282,-500.0,0.0001962,2]
[320324796,1711291409303,-336.73649834,0.0001962,2]
[320324797,1711291409324,-1118.62,0.0001962,2]
[320324798,1711291409351,-500.0,0.0001962,2]
[320324799,1711291409372,-500.0,0.0001962,2]
[320324800,1711291409393,-456.24,0.0001962,2]
[320324801,1711291409415,-196.49,0.0001962,2]
[320324802,1711291409436,-319.62,0.0001962,2]
[320324803,1711291409456,-324.72,0.0001962,2]
[320324804,1711291409476,-500.0,0.0001962,2]
[320324805,1711291409496,-500.0,0.0001962,2]
[320324806,1711291409516,-500.0,0.0001962,2]
[320324807,1711291409535,-178.47,0.0001962,2]
[320324808,1711291409555,-500.0,0.0001962,2]
[320324809,1711291409575,-346.23689963,0.0001962,2]
[320324810,1711291409596,-500.0,0.0001962,2]
[320324811,1711291409616,-418.3,0.0001962,2]
[320324812,1711291409637,-194.44,0.0001962,2]
[320324813,1711291409658,-500.0,0.0001962,2]
[320324814,1711291409678,-255.04,0.0001962,2]
[320324815,1711291409697,-198.97833915,0.0001962,2]
[320324816,1711291409717,-198.97,0.0001962,2]
[320324817,1711291409736,-500.0,0.0001962,2]
[320324818,1711291409756,-164.44,0.0001962,2]
[320324819,1711291409776,-500.0,0.0001962,2]
[320324820,1711291409796,-450.27,0.0001962,2]
[320324821,1711291409816,-500.0,0.0001962,2]
[320324822,1711291409837,-500.0,0.0001962,2]
[320324823,1711291409858,-561.88,0.0001962,2]
[320324824,1711291409879,-500.0,0.0001962,2]
[320324825,1711291409899,-500.0,0.0001962,2]
[320324826,1711291409919,-500.0,0.0001962,2]
[320324827,1711291409941,-610.61,0.0001962,2]
[320324828,1711291409961,-500.0,0.0001962,2]
[320324829,1711291409982,-240.93,0.0001962,2]
[320324830,1711291410002,-409.06,0.0001962,2]
[320324831,1711291410022,-500.0,0.0001962,2]
[320324832,1711291410044,-500.0,0.0001962,2]
[320324833,1711291410065,-413.73,0.0001962,2]
[320324834,1711291410087,-500.0,0.0001962,2]
[320324835,1711291410109,-500.0,0.0001962,2]
[320324836,1711291410131,-160.26,0.0001962,2]
[320324837,1711291410152,-447.69,0.0001962,2]
[320324838,1711291410173,-519.06,0.0001962,2]
[320324839,1711291410194,-444.38,0.0001962,2]
[320324840,1711291410221,-500.0,0.0001962,2]
[320324841,1711291410242,-500.0,0.0001962,2]
[320324842,1711291410263,-500.0,0.0001962,2]
[320324843,1711291410283,-500.0,0.0001962,2]
[320324844,1711291410304,-500.0,0.0001962,2]
[320324845,1711291410325,-154.89,0.0001962,2]
[320324846,1711291410351,-500.0,0.0001962,2]
[320324847,1711291410372,-500.0,0.0001962,2]
[320324848,1711291410393,-548.47,0.0001962,2]
[320324849,1711291410413,-622.75,0.0001962,2]
[320324850,1711291410435,-500.0,0.0001962,2]
[320324851,1711291410456,-506.52447423,0.0001962,2]
[320324852,1711291410477,-500.0,0.0001962,2]
[320324853,1711291410500,-500.0,0.0001962,2]
[320324854,1711291410522,-567.59,0.0001962,2]
[320324855,1711291410542,-500.0,0.0001962,2]
[320324856,1711291410563,-500.0,0.0001962,2]
[320324857,1711291410589,-327.11,0.0001962,2]
[320324858,1711291410609,-415.76,0.0001962,2]
[320324859,1711291410630,-500.0,0.0001962,2]
[320324860,1711291410653,-500.0,0.0001962,2]
[320324861,1711291410674,-500.0,0.0001962,2]
[320324862,1711291410694,-500.0,0.0001962,2]
[320324863,1711291410718,-500.0,0.0001962,2]
[320324864,1711291410738,-500.0,0.0001962,2]
[320324865,1711291410759,-500.0,0.0001962,2]
[320324866,1711291410779,-500.0,0.0001962,2]
[320324867,1711291410799,-1687.49,0.0001962,2]
[320324868,1711291410819,-500.0,0.0001962,2]
[320324869,1711291410841,-500.0,0.0001962,2]
[320324870,1711291410863,-242.19056741,0.0001962,2]
[320324871,1711291410882,-523.52,0.0001962,2]
[320324872,1711291410903,-508.98,0.0001962,2]
[320324873,1711291410923,-500.0,0.0001962,2]
[320324874,1711291410943,-1118.54,0.0001962,2]
[320324875,1711291410964,-3052.06,0.0001962,2]
[320324876,1711291410986,-7887.25,0.0001962,2]
[320324877,1711291411007,-500.0,0.0001962,2]
[320324878,1711291411029,-788.42,0.0001962,2]
[320324879,1711291411051,-500.0,0.0001962,2]
[320324880,1711291411071,-500.0,0.0001962,2]
[320324881,1711291411095,-500.0,0.0001962,2]
[320324882,1711291411117,-244.84,0.0001962,2]
[320324883,1711291411138,-500.0,0.0001962,2]
[320324884,1711291411159,-575.34,0.0001962,2]
[320324885,1711291411180,-500.0,0.0001962,2]
[320324886,1711291411200,-500.0,0.0001962,2]
[320324887,1711291411223,-244.25,0.0001962,2]
[320324888,1711291411246,-500.0,0.0001962,2]
[320324889,1711291411269,-563.49,0.0001962,2]
[320324890,1711291411291,-292.22658184,0.0001962,2]
[320324891,1711291411313,-500.0,0.0001962,2]
[320324892,1711291411338,-500.0,0.0001962,2]
[320324893,1711291411605,-1019.69,0.0001962,2]
[320324894,1711291411630,-573.91222102,0.0001962,2]
[320324895,1711291411654,-464.01,0.0001962,2]
[320324896,1711291411676,-500.0,0.0001962,2]
[320324897,1711291411700,-500.0,0.0001962,2]
[320324898,1711291411723,-171.44210934,0.00019644,2]
[320324899,1711291411749,-155.0,0.0001966,2]
[320324900,1711291411773,-316.87969641,0.00019678,2]
[320324901,1711291411798,-196.0953466,0.00019697,2]
[320324902,1711291411822,-220.06831271,0.00019708,2]
[320324903,1711291411845,-552.29,0.00019725,2]
[320324904,1711291411865,-200.0,0.00019739,2]
[320324905,1711291411888,-800.0,0.00019739,2]
[320324906,1711291411912,-200.0,0.00019739,2]
[320324907,1711291411938,-150.0,0.00019746,2]
[320324908,1711291411962,-196.09534656,0.00019747,2]
[320324909,1711291411984,-316.87969641,0.00019752,2]
[320324910,1711291412006,-928.9,0.00019756,2]
[320324911,1711291412029,-500.0,0.00019756,2]
[320324912,1711291412051,-500.0,0.00019756,2]
[320324913,1711291412072,-194.82,0.00019756,2]
[320324914,1711291412095,-1149.21,0.00019756,2]
[320324915,1711291412117,-500.0,0.00019756,2]
[320324916,1711291412139,-500.0,0.00019756,2]
[320324917,1711291412161,-500.0,0.00019756,2]
[320324918,1711291412182,-197.0602128,0.00019756,2]
[320324919,1711291412203,-500.0,0.00019756,2]
[320324920,1711291412225,-500.0,0.00019756,2]
[320324921,1711291412247,-735.49,0.00019756,2]
[320324922,1711291412269,-500.0,0.00019756,2]
[320324923,1711291412290,-500.0,0.00019756,2]
[320324924,1711291412314,-500.0,0.00019756,2]
[320324925,1711291412342,-500.0,0.00019756,2]
[320324926,1711291412365,-500.0,0.00019756,2]
[320324927,1711291412390,-500.0,0.00019756,2]
[320324928,1711291412414,-1702.04,0.00019756,2]
[320324929,1711291412439,-1509.4,0.00019756,2]
[320324930,1711291412462,-502.35,0.00019756,2]
[320324931,1711291412485,-500.0,0.00019756,2]
[320324932,1711291412508,-500.0,0.00019756,2]
[320324933,1711291412533,-500.0,0.00019756,2]
[320324934,1711291412557,-611.55,0.00019756,2]
[320324935,1711291412581,-500.0,0.00019756,2]
[320324936,1711291412605,-500.0,0.00019756,2]
[320324937,1711291412628,-500.0,0.00019756,2]
[320324938,1711291412651,-500.0,0.00019756,2]
[320324939,1711291412673,-500.0,0.00019756,2]
[320324940,1711291412696,-500.0,0.00019756,2]
[320324941,1711291412720,-827.69,0.00019756,2]
[320324942,1711291412744,-597.61,0.00019756,2]
[320324943,1711291412769,-2453.03,0.00019756,2]
[320324944,1711291412794,-500.0,0.00019756,2]
[320324945,1711291412818,-500.0,0.00019756,2]
[320324946,1711291412843,-646.31,0.00019756,2]
[320324947,1711291412867,-500.0,0.00019756,2]
[320324948,1711291412891,-696.0,0.00019756,2]
[320324949,1711291412917,-500.0,0.00019756,2]
[320324950,1711291412941,-500.0,0.00019756,2]
[320324951,1711291412965,-500.0,0.00019756,2]
[320324952,1711291412988,-500.0,0.00019756,2]
[320324953,1711291413011,-500.0,0.00019756,2]
[320324954,1711291413034,-644.82,0.00019756,2]
[320324955,1711291413056,-500.0,0.00019756,2]
[320324956,1711291413079,-500.0,0.00019756,2]
[320324957,1711291413102,-383.85870324,0.00019756,2]
[320324958,1711291413124,-500.0,0.00019756,2]
[320324959,1711291413146,-806.0,0.00019756,2]
[320324960,1711291413168,-500.0,0.00019756,2]
[320324961,1711291413192,-500.0,0.00019756,2]
[320324962,1711291413214,-500.0,0.00019756,2]
[320324963,1711291413235,-500.0,0.00019756,2]
[320324964,1711291413256,-772.44,0.00019756,2]
[320324965,1711291413276,-500.0,0.00019756,2]
[320324966,1711291413297,-610.42,0.00019756,2]
[320324967,1711291413320,-500.0,0.00019756,2]
[320324968,1711291413346,-500.0,0.00019756,2]
[320324969,1711291413367,-500.0,0.00019756,2]
[320324970,1711291413389,-500.0,0.00019756,2]
[320324971,1711291413415,-500.0,0.00019756,2]
[320324972,1711291413442,-1694.63,0.00019756,2]
[320324973,1711291413466,-500.0,0.00019756,2]
[320324974,1711291413490,-500.0,0.00019756,2]
[320324975,1711291413513,-500.0,0.00019756,2]
[320324976,1711291413535,-500.0,0.00019756,2]
[320324977,1711291413559,-500.0,0.00019756,2]
[320324978,1711291413581,-500.0,0.00019756,2]
[320324979,1711291413607,-500.0,0.00019756,2]
[320324980,1711291413631,-500.0,0.00019756,2]
[320324981,1711291413654,-500.0,0.00019756,2]
[320324982,1711291413677,-500.0,0.00019756,2]
[320324983,1711291413701,-8204.71,0.00019756,2]
[320324984,1711291413726,-500.0,0.00019756,2]
[320324985,1711291413751,-500.0,0.00019756,2]
[320324986,1711291413775,-500.0,0.00019756,2]
[320324987,1711291413798,-500.0,0.00019756,2]
[320324988,1711291413821,-500.0,0.00019756,2]
[320324989,1711291413846,-500.0,0.00019756,2]
[320324990,1711291413872,-500.0,0.00019756,2]
[320324991,1711291413897,-500.0,0.00019756,2]
[320324992,1711291413919,-150.0,0.00019756,2]
[320324993,1711291413943,-500.0,0.00019756,2]
[320324994,1711291413967,-500.0,0.00019756,2]
[320324995,1711291413990,-3249.37,0.00019757,2]
[320324996,1711291414013,-500.0,0.00019757,2]
[320324997,1711291414036,-528.79,0.00019757,2]
[320324998,1711291414060,-500.0,0.00019757,2]
[320324999,1711291414083,-500.0,0.00019757,2]
[320325000,1711291414108,-500.0,0.00019757,2]
[320325001,1711291414131,-1349.51,0.00019757,2]
[320325002,1711291414154,-653.1,0.00019757,2]
[320325003,1711291414176,-500.0,0.00019757,2]
[320325004,1711291414197,-500.0,0.00019757,2]
[320325005,1711291414219,-962.33,0.00019757,2]
[320325006,1711291414247,-500.0,0.00019757,2]
[320325007,1711291414271,-437.07195621,0.00019757,2]